bitfinex/quotes_BTCUSD_20250719
["timestamp","ask_amount","ask_price","bid_price","bid_amount"]
[1752892427656,0.24823917,118150.0,118140.0,0.003]
[1752892427860,0.26278002,118150.0,118140.0,0.06848]
[1752892428321,0.48157774,118150.0,118140.0,0.06848]
[1752892428739,0.26278002,118150.0,118140.0,0.06848]
[1752892428956,0.26337835,118150.0,118140.0,0.06848]
[1752892429168,0.23796035,118150.0,118140.0,0.06848]
[1752892429638,0.23796035,118150.0,118140.0,0.003]
[1752892429852,0.23796035,118150.0,118140.0,0.06848]
[1752892430488,0.23796035,118150.0,118140.0,0.003]
[1752892430705,0.23796035,118150.0,118140.0,0.06848]
[1752892431835,0.30058243,118150.0,118140.0,0.06848]
[1752892432359,0.32600043,118150.0,118140.0,0.06848]
[1752892432576,0.30058243,118150.0,118140.0,0.06848]
[1752892434898,0.30058243,118150.0,118140.0,0.06844]
[1752892435297,0.32600043,118150.0,118140.0,0.06844]
[1752892435940,0.32600043,118150.0,118140.0,0.06744]
[1752892436155,0.32600043,118150.0,118140.0,0.06544]
[1752892437229,0.26337835,118150.0,118140.0,0.06544]
[1752892437440,0.26019835,118150.0,118140.0,0.06544]
[1752892438112,0.2456575,118150.0,118140.0,0.06544]
[1752892438369,0.03649021,118150.0,118140.0,0.45003895]
[1752892438859,0.04495388,118150.0,118140.0,0.45850298]
[1752892439089,0.03649057,118150.0,118140.0,0.45003902]
[1752892439343,0.03649057,118150.0,118140.0,0.45850319]
[1752892439557,0.19730338,118150.0,118140.0,0.44157478]
[1752892440045,0.19730338,118150.0,118140.0,0.45003909]
[1752892440319,0.18883978,118150.0,118140.0,0.07044]
[1752892440565,0.18621937,118140.0,118130.0,0.1777701]
[1752892440773,0.18621937,118140.0,118130.0,0.25167527]
[1752892440992,0.18836937,118140.0,118130.0,0.2601403]
[1752892441229,0.18836937,118140.0,118130.0,0.26860526]
[1752892441736,0.18836937,118140.0,118130.0,0.46198498]
[1752892441987,0.21050506,118140.0,118130.0,0.06644]
[1752892442233,0.21050506,118140.0,118130.0,0.42912472]
[1752892442469,0.19510506,118140.0,118130.0,0.42912472]
[1752892442687,0.19510506,118140.0,118130.0,0.237745]
[1752892442954,0.19510506,118140.0,118130.0,0.24621017]
[1752892443214,0.20500067,118140.0,118130.0,0.06844]
[1752892443909,0.20500067,118140.0,118130.0,0.06744]
[1752892444162,0.20500067,118140.0,118130.0,0.06544]
[1752892444409,0.20500067,118140.0,118130.0,0.07390525]
[1752892444859,0.20500067,118140.0,118130.0,0.06544]
[1752892445566,0.20500067,118140.0,118130.0,0.07390525]
[1752892446072,0.20500067,118140.0,118120.0,0.3826679]
[1752892446073,0.01692999,118130.0,118120.0,0.3826679]
[1752892446316,0.17992017,118130.0,118120.0,0.4500679]
[1752892447091,0.00846553,118120.0,118110.0,0.75378582]
[1752892447340,0.01693121,118120.0,118110.0,0.82965228]
[1752892447829,0.01693121,118120.0,118110.0,0.63627256]
[1752892448106,0.01693121,118120.0,118110.0,0.82965228]
[1752892448334,0.0253966,118120.0,118110.0,0.82965228]
[1752892448513,0.02539624,118120.0,118110.0,0.82965228]
[1752892448929,0.01693071,118120.0,118110.0,0.83265228]
[1752892449543,0.00846532,118120.0,118110.0,0.83265228]
[1752892449712,0.01692999,118130.0,118120.0,0.19471636]
[1752892449900,0.01907999,118130.0,118120.0,0.39005608]
[1752892450282,0.01907999,118130.0,118120.0,0.39309608]
[1752892450473,0.02754516,118130.0,118120.0,0.39309608]
[1752892450690,0.01907956,118130.0,118120.0,0.39409608]
[1752892450996,0.03600983,118130.0,118120.0,0.39409608]
[1752892451196,0.02754466,118130.0,118120.0,0.39409608]
[1752892452026,0.03600983,118130.0,118120.0,0.38763062]
[1752892452232,0.04447508,118130.0,118120.0,0.39609622]
[1752892452435,0.04447508,118130.0,118120.0,0.40456175]
[1752892452647,0.04447508,118130.0,118120.0,0.41302721]
[1752892456149,0.03600983,118130.0,118120.0,0.41302721]
[1752892456290,0.02754466,118130.0,118120.0,0.41302721]
[1752892456503,0.01061467,118130.0,118120.0,0.41302721]
[1752892456714,0.01692949,118130.0,118120.0,0.41302721]
[1752892457111,0.02539438,118130.0,118120.0,0.41302721]
[1752892457371,0.03385948,118130.0,118120.0,0.41302721]
[1752892458672,0.02539438,118130.0,118120.0,0.42862721]
[1752892458902,0.01692949,118130.0,118120.0,0.44462721]
[1752892459755,0.03385948,118130.0,118120.0,0.44462721]
[1752892460881,0.02539438,118130.0,118120.0,0.44462721]
[1752892461329,0.03385941,118130.0,118120.0,0.44462721]
[1752892461983,0.03385934,118130.0,118120.0,0.44462721]
[1752892462374,0.04232444,118130.0,118120.0,0.44462721]
[1752892462713,0.03385934,118130.0,118120.0,0.44462721]
[1752892463400,0.03385934,118130.0,118120.0,0.42862721]
[1752892463626,0.04232444,118130.0,118120.0,0.42862721]
[1752892465159,0.04232494,118130.0,118120.0,0.42862721]
[1752892467338,0.04232537,118130.0,118120.0,0.42862721]
[1752892468280,0.04232537,118130.0,118120.0,0.23524749]
[1752892468503,0.04232537,118130.0,118120.0,0.42862721]
[1752892469756,0.02539495,118130.0,118120.0,0.42862721]
[1752892469967,0.03386012,118130.0,118120.0,0.42862721]
[1752892470956,0.03386012,118130.0,118120.0,0.62214603]
[1752892471159,0.03386012,118130.0,118120.0,0.68754603]
[1752892471580,0.02539495,118130.0,118120.0,0.68754603]
[1752892472194,0.00846482,118130.0,118120.0,0.69417985]
[1752892472369,0.02539488,118130.0,118120.0,0.69417985]
[1752892472574,0.01692978,118130.0,118120.0,0.69417985]
[1752892472847,0.02539488,118130.0,118120.0,0.69417985]
[1752892473104,0.02539438,118130.0,118120.0,0.69417985]
[1752892473785,0.03385941,118130.0,118120.0,0.69417985]
[1752892474041,0.04232451,118130.0,118120.0,0.69417985]
[1752892474271,0.03385941,118130.0,118120.0,0.69417985]
[1752892474698,0.01692942,118130.0,118120.0,0.30728131]
[1752892474911,0.02539438,118130.0,118120.0,0.69417985]
[1752892475939,0.03385948,118130.0,118120.0,0.30728131]
[1752892476133,0.03385948,118130.0,118120.0,0.67907985]
[1752892477087,0.02539438,118130.0,118120.0,0.67907985]
[1752892477309,0.02539431,118130.0,118120.0,0.67907985]
[1752892477522,0.02539431,118130.0,118120.0,0.69497985]
[1752892477793,0.02539431,118130.0,118120.0,0.62957985]
[1752892478011,0.02539431,118130.0,118120.0,0.69497985]
[1752892478304,0.00846439,118140.0,118130.0,0.19470002]
[1752892478529,0.03385676,118140.0,118130.0,0.42345885]
[1752892478736,0.03385676,118140.0,118130.0,0.42647885]
[1752892478912,0.03385668,118140.0,118130.0,0.42647885]
[1752892479529,0.04232107,118140.0,118130.0,0.42647885]
[1752892481976,0.04232107,118140.0,118130.0,0.23302958]
[1752892482198,0.04232164,118140.0,118130.0,0.41801425]
[1752892482460,0.20314814,118140.0,118130.0,0.40954951]
[1752892482657,0.20314814,118140.0,118130.0,0.39324951]
[1752892483514,0.1946839,118140.0,118130.0,0.39324951]
[1752892484026,0.1946839,118140.0,118130.0,0.38478455]
[1752892484230,0.1946839,118140.0,118130.0,0.39324951]
[1752892484783,0.1946839,118140.0,118130.0,0.19980024]
[1752892485001,0.18621959,118140.0,118130.0,0.18287025]
[1752892485212,0.1797152,118140.0,118130.0,0.37631952]
[1752892485392,0.1797152,118140.0,118130.0,0.38478469]
[1752892486686,0.1797152,118140.0,118130.0,0.40171482]
[1752892486895,0.1797152,118140.0,118130.0,0.41017978]
[1752892487898,0.18621951,118140.0,118130.0,0.41017935]
[1752892488298,0.18621951,118140.0,118130.0,0.40171453]
[1752892488721,0.18621951,118140.0,118130.0,0.41017942]
[1752892489115,0.18621951,118140.0,118130.0,0.1998003]
[1752892489334,0.18621951,118140.0,118130.0,0.39324957]
[1752892489541,0.18621951,118140.0,118130.0,0.40171453]
[1752892489770,0.18621951,118140.0,118130.0,0.41017942]
[1752892491340,0.18817951,118140.0,118130.0,0.40171453]
[1752892493696,0.18817951,118140.0,118130.0,0.20826526]
[1752892493907,0.18817951,118140.0,118130.0,0.40171453]
[1752892494836,0.18621951,118140.0,118130.0,0.40171453]
[1752892495238,0.18621951,118140.0,118130.0,0.41017942]
[1752892495669,0.0090292,118150.0,118140.0,0.20314778]
[1752892495876,0.00056596,118150.0,118140.0,0.69291632]
[1752892496298,0.00056596,118150.0,118140.0,1.1184266]
[1752892497008,0.00156596,118150.0,118140.0,1.1184266]
[1752892497212,0.00156596,118150.0,118140.0,0.73152806]
[1752892497417,0.00156596,118150.0,118140.0,1.1184266]
[1752892497647,0.00056596,118150.0,118140.0,1.1184266]
[1752892498084,0.00056596,118150.0,118140.0,1.31187587]
[1752892498220,0.00056596,118150.0,118140.0,1.31287587]
[1752892498447,0.00056596,118150.0,118140.0,1.31487587]
[1752892499042,0.00056596,118150.0,118140.0,1.12115504]
[1752892503022,0.00056596,118150.0,118140.0,1.12015504]
[1752892503214,0.00056596,118150.0,118140.0,1.12115504]
[1752892503815,0.00056596,118150.0,118140.0,1.12015504]
[1752892504013,0.00056596,118150.0,118140.0,1.12215504]
[1752892504852,0.00056596,118150.0,118140.0,1.12015504]
[1752892505054,0.00056596,118150.0,118140.0,1.12215504]
[1752892505612,0.00056596,118150.0,118140.0,1.12015504]
[1752892505968,0.00056596,118150.0,118140.0,1.12315504]
[1752892507033,0.00056596,118150.0,118140.0,1.22471504]
[1752892512435,0.00056596,118150.0,118140.0,1.23337699]
[1752892518069,0.00056596,118150.0,118140.0,1.23676499]
[1752892521179,0.00056596,118150.0,118140.0,1.42992569]
[1752892525060,0.00056596,118150.0,118140.0,1.42653769]
[1752892526924,0.00056596,118150.0,118140.0,1.36117769]
[1752892527132,0.0005039,118150.0,118140.0,1.42645769]
[1752892527570,0.0005039,118150.0,118140.0,1.36117769]
[1752892528011,0.0005039,118150.0,118140.0,1.42645769]
[1752892528240,0.0005039,118150.0,118140.0,0.78139001]
[1752892528478,0.0005039,118150.0,118140.0,1.19223318]
[1752892529116,0.0005039,118150.0,118140.0,0.80570806]
[1752892529325,0.0005039,118150.0,118140.0,1.19223318]
[1752892529796,0.0005039,118150.0,118140.0,1.09067318]
[1752892530005,0.0005039,118150.0,118140.0,1.31553574]
[1752892530849,0.0005039,118150.0,118140.0,1.32408325]
[1752892531111,0.0005039,118150.0,118140.0,1.18080034]
[1752892534104,0.0005039,118150.0,118140.0,2.67429158]
[1752892535094,0.0005039,118150.0,118140.0,2.67229158]
[1752892535363,0.0002,118160.0,118150.0,0.22666692]
[1752892535575,0.0002,118160.0,118150.0,0.76610198]
[1752892535758,0.0002,118160.0,118150.0,0.76921198]
[1752892536389,1e-08,118160.0,118150.0,3.18040633]
[1752892536589,1e-08,118170.0,118160.0,0.24465042]
[1752892536792,0.0001495,118170.0,118160.0,1.57020948]
[1752892537098,0.0001495,118170.0,118160.0,0.81915548]
[1752892537305,0.0001495,118170.0,118160.0,6.36694872]
[1752892537526,0.0001495,118170.0,118160.0,2.98366634]
[1752892537749,0.0001495,118170.0,118160.0,1.09714148]
[1752892537968,0.0001495,118170.0,118160.0,0.9192891]
[1752892538178,0.0001495,118170.0,118160.0,0.8998031]
[1752892538650,0.0001495,118170.0,118160.0,1.09305549]
[1752892538880,0.0001495,118170.0,118160.0,1.10915549]
[1752892539094,0.0001495,118170.0,118160.0,1.11015549]
[1752892539311,0.0001495,118170.0,118160.0,1.10915549]
[1752892539735,0.0001495,118170.0,118160.0,1.11415549]
[1752892539965,0.0001495,118170.0,118160.0,1.11419549]
[1752892548375,0.0001495,118170.0,118160.0,3.03366033]
[1752892548863,1e-08,118170.0,118160.0,6.37537472]
[1752892550071,1e-08,118170.0,118160.0,3.75772433]
[1752892551321,1e-08,118170.0,118160.0,3.69300433]
[1752892551960,1e-08,118170.0,118160.0,3.71779953]
[1752892553595,1e-08,118170.0,118160.0,3.91105192]
[1752892557418,1e-08,118180.0,118170.0,0.61593396]
[1752892557651,0.0002,118190.0,118180.0,0.63045834]
[1752892557652,1e-08,118190.0,118180.0,0.63045834]
[1752892557859,1e-08,118190.0,118180.0,2.6928634]
[1752892558095,1e-08,118190.0,118180.0,2.7014994]
[1752892560524,1e-08,118190.0,118180.0,2.7034994]
[1752892560749,1e-08,118220.0,118210.0,0.20966811]
[1752892560968,1e-08,118220.0,118210.0,2.96198201]
[1752892561192,1e-08,118230.0,118220.0,0.95115643]
[1752892561447,1e-08,118230.0,118220.0,2.06696155]
[1752892561680,1e-08,118230.0,118220.0,2.07019155]
[1752892561896,1e-08,118230.0,118220.0,1.65940055]
[1752892562108,1e-08,118230.0,118220.0,1.26045042]
[1752892562321,0.00196001,118230.0,118220.0,1.08254857]
[1752892562536,0.00196001,118230.0,118220.0,1.07200671]
[1752892562747,0.00196001,118230.0,118220.0,1.07300671]
[1752892562959,0.00196001,118230.0,118220.0,1.07500671]
[1752892563384,0.00196001,118230.0,118220.0,1.07702671]
[1752892563590,1e-08,118230.0,118220.0,1.08025671]
[1752892564671,1e-08,118230.0,118220.0,0.69375193]
[1752892564889,0.00196001,118230.0,118220.0,0.88700432]
[1752892565075,0.0626234,118230.0,118220.0,0.8733761]
[1752892565386,0.22332762,118230.0,118220.0,0.33166505]
[1752892565571,0.22332762,118230.0,118220.0,0.68012364]
[1752892565847,0.22332762,118230.0,118220.0,0.34012364]
[1752892566065,0.22332762,118230.0,118220.0,0.68658215]
[1752892566281,0.22332762,118230.0,118220.0,0.69504059]
[1752892566492,0.22432762,118230.0,118220.0,0.68658215]
[1752892567031,0.22432762,118230.0,118220.0,0.15203028]
[1752892567032,0.20741181,118230.0,118220.0,0.15203028]
[1752892567528,0.20741181,118230.0,118220.0,0.16048908]
[1752892567945,0.20641181,118230.0,118220.0,0.16048908]
[1752892568378,0.00515001,118230.0,118220.0,1.14832202]
[1752892568592,0.03606001,118230.0,118220.0,0.76181724]
[1752892568799,0.03606001,118230.0,118220.0,0.88954963]
[1752892569243,0.03925001,118230.0,118220.0,0.33736392]
[1752892569463,0.03925001,118230.0,118220.0,0.35428073]
[1752892569684,0.03925001,118230.0,118220.0,0.54753312]
[1752892569900,0.03606001,118230.0,118220.0,0.54753312]
[1752892570534,0.03925001,118230.0,118220.0,0.54753312]
[1752892570749,0.03925001,118230.0,118220.0,0.48177312]
[1752892570958,0.03925001,118230.0,118220.0,0.54761312]
[1752892571179,1e-08,118230.0,118220.0,1.15389202]
[1752892571423,1e-08,118230.0,118220.0,1.16919202]
[1752892571636,1e-08,118230.0,118220.0,1.18429202]
[1752892572077,0.0002,118240.0,118230.0,0.19453519]
[1752892572293,0.0002,118240.0,118230.0,0.73445025]
[1752892572506,0.0002,118240.0,118230.0,0.73768025]
[1752892573203,0.0002,118240.0,118230.0,0.55223628]
[1752892574367,0.0012,118240.0,118230.0,0.55223628]
[1752892575294,0.00316,118240.0,118230.0,0.35117547]
[1752892575491,0.00316,118240.0,118230.0,0.34592547]
[1752892575692,0.00635,118240.0,118230.0,0.34592547]
[1752892575856,0.00316,118240.0,118230.0,0.54698628]
[1752892576064,0.00316,118240.0,118230.0,0.54900628]
[1752892576262,0.0012,118240.0,118230.0,0.55223628]
[1752892577321,0.00129889,118250.0,118240.0,0.55101874]
[1752892577539,0.00129889,118250.0,118240.0,1.04390064]
[1752892578584,0.00129889,118250.0,118240.0,1.04490064]
[1752892580192,0.00129889,118250.0,118240.0,1.04590064]
[1752892580380,0.00129889,118250.0,118240.0,1.07624149]
[1752892580751,0.00129889,118250.0,118240.0,1.1020162]
[1752892581752,0.00129889,118250.0,118240.0,1.11035473]
[1752892582022,0.00129889,118250.0,118240.0,1.13043388]
[1752892582204,0.00129889,118250.0,118240.0,0.90359836]
[1752892582356,0.00129889,118250.0,118240.0,1.12035917]
[1752892584380,0.00129889,118250.0,118240.0,1.10465917]
[1752892585619,0.00129889,118250.0,118240.0,1.13675917]
[1752892586048,0.0002,118260.0,118240.0,1.13675917]
[1752892586254,0.00034944,118260.0,118250.0,0.90654754]
[1752892586465,0.00034944,118260.0,118250.0,0.92574338]
[1752892586679,0.00034944,118260.0,118250.0,0.72468257]
[1752892586884,0.00034944,118260.0,118250.0,0.90964338]
[1752892587300,0.00034944,118260.0,118250.0,0.94028423]
[1752892587433,0.00034944,118260.0,118250.0,0.99028422]
[1752892587651,0.00230944,118260.0,118250.0,0.89049338]
[1752892587894,0.00230944,118260.0,118250.0,0.88843338]
[1752892588068,0.04550481,118260.0,118250.0,0.88955338]
[1752892588267,0.03704944,118260.0,118250.0,0.88955338]
[1752892588844,0.03704944,118260.0,118250.0,0.82107338]
[1752892589066,0.03704944,118260.0,118250.0,0.67903642]
[1752892589067,0.06241633,118260.0,118250.0,0.67903642]
[1752892589288,0.04550509,118260.0,118250.0,0.60310012]
[1752892589506,0.03704944,118260.0,118250.0,0.89705003]
[1752892589939,0.03400944,118260.0,118250.0,0.83159003]
[1752892590154,0.00034944,118260.0,118250.0,0.90346003]
[1752892590833,0.00134944,118260.0,118250.0,0.90346003]
[1752892591272,0.00134944,118260.0,118250.0,0.70239922]
[1752892591486,0.00134944,118260.0,118250.0,0.90346003]
[1752892591950,0.00330944,118260.0,118250.0,0.90346003]
[1752892593550,0.03694944,118260.0,118250.0,0.89825003]
[1752892594489,0.05386039,118260.0,118250.0,0.69718937]
[1752892594696,0.04540481,118260.0,118250.0,0.70564552]
[1752892595062,0.03694944,118260.0,118250.0,0.89866481]
[1752892595481,0.04540474,118260.0,118250.0,0.89866481]
[1752892595910,0.03694944,118260.0,118250.0,0.89866481]
[1752892596580,0.03390944,118260.0,118250.0,0.89866481]
[1752892596812,0.00330944,118260.0,118250.0,0.90387481]
[1752892597256,0.00330944,118260.0,118250.0,0.89866481]
[1752892597660,0.00330944,118260.0,118250.0,0.70564552]
[1752892597884,0.03420944,118260.0,118250.0,0.70564552]
[1752892598084,0.03420944,118260.0,118250.0,0.89866481]
[1752892598314,0.03420944,118260.0,118250.0,0.6115567]
[1752892598531,0.04570474,118260.0,118250.0,0.89866495]
[1752892598745,0.05416025,118260.0,118250.0,0.8902088]
[1752892598953,0.0626159,118260.0,118250.0,0.89866503]
[1752892599170,0.24019066,118260.0,118250.0,0.15419028]
[1752892599429,0.23173579,118260.0,118250.0,0.16264693]
[1752892599628,0.22328014,118260.0,118250.0,0.15419028]
[1752892600159,0.47495999,118260.0,118250.0,0.06868]
[1752892600367,0.41629943,118260.0,118250.0,0.06868]
[1752892600995,0.0395568,118240.0,118230.0,0.65289094]
[1752892601212,0.04997374,118240.0,118230.0,0.80700122]
[1752892601427,0.05301374,118240.0,118230.0,0.80700122]
[1752892601850,0.0445568,118240.0,118230.0,0.80700122]
[1752892602059,0.05301367,118240.0,118230.0,0.80700122]
[1752892602262,0.06147061,118240.0,118230.0,0.80700122]
[1752892602886,0.06147061,118240.0,118230.0,0.80900122]
[1752892603307,0.06147061,118240.0,118230.0,0.81100122]
[1752892603490,0.06992777,118240.0,118230.0,0.81100122]
[1752892603718,0.06147061,118240.0,118230.0,0.81100122]
[1752892604299,0.06992762,118240.0,118230.0,0.81100122]
[1752892604637,0.06147061,118240.0,118230.0,0.81100122]
[1752892604858,0.07838485,118240.0,118230.0,0.80254364]
[1752892605079,0.07838535,118240.0,118230.0,0.80254371]
[1752892605525,0.06992848,118240.0,118230.0,0.78562811]
[1752892605780,0.06992848,118240.0,118230.0,0.80254378]
[1752892606017,0.06992848,118240.0,118230.0,0.80054378]
[1752892606144,0.06992848,118240.0,118230.0,0.80700151]
[1752892606365,0.06147118,118240.0,118230.0,0.80900072]
[1752892606575,0.06992848,118240.0,118230.0,0.80054314]
[1752892606769,0.06992848,118240.0,118230.0,0.78362775]
[1752892607027,0.06992848,118240.0,118230.0,0.80054357]
[1752892607475,0.06992848,118240.0,118230.0,0.79208584]
[1752892607903,0.23061903,118240.0,118230.0,0.78362811]
[1752892608044,0.23061903,118240.0,118230.0,0.79208598]
[1752892608427,0.22216202,118240.0,118230.0,0.79208598]
[1752892608641,0.05301453,118240.0,118230.0,0.80054378]
[1752892608866,0.0614719,118240.0,118230.0,0.70756151]
[1752892609052,0.04997374,118240.0,118230.0,0.90869682]
[1752892609483,0.05843082,118240.0,118230.0,0.90869682]
[1752892610112,0.04997374,118240.0,118230.0,0.70756072]
[1752892610322,0.05843075,118240.0,118230.0,0.90869682]
[1752892610779,0.04997374,118240.0,118230.0,0.88332414]
[1752892610999,0.23907547,118240.0,118230.0,0.69064605]
[1752892611476,0.23061867,118240.0,118230.0,0.68218818]
[1752892611907,0.23061867,118240.0,118230.0,0.69064612]
[1752892612813,0.21370472,118240.0,118230.0,0.0706]
[1752892614313,0.21370472,118240.0,118230.0,0.001]
[1752892614583,0.21370472,118240.0,118230.0,0.06832]
[1752892614797,0.21370472,118240.0,118230.0,0.25439775]
[1752892615007,0.21470472,118240.0,118230.0,0.26285562]
[1752892615453,0.04555701,118240.0,118230.0,0.26285562]
[1752892615662,0.24007583,118240.0,118230.0,0.06832]
[1752892615912,0.22316202,118240.0,118230.0,0.06832]
[1752892616119,0.19406202,118240.0,118220.0,0.73568539]
[1752892616389,0.03341553,118230.0,118220.0,0.82965433]
[1752892616583,0.05944304,118230.0,118220.0,0.8809778]
[1752892616791,0.06790113,118230.0,118220.0,0.88943617]
[1752892617218,0.06790113,118230.0,118220.0,0.8809778]
[1752892617558,0.06790113,118230.0,118220.0,0.6798417]
[1752892617770,0.06890113,118230.0,118220.0,0.6798417]
[1752892618165,0.06890113,118230.0,118220.0,0.8809778]
[1752892618364,0.06890113,118230.0,118220.0,0.88943617]
[1752892618584,0.06890098,118230.0,118220.0,0.89789447]
[1752892618790,0.07735907,118230.0,118220.0,0.8809778]
[1752892619401,0.07735907,118230.0,118220.0,0.6798417]
[1752892619732,0.07735907,118230.0,118220.0,0.88943617]
[1752892620181,0.24652087,118230.0,118220.0,0.87251936]
[1752892620399,0.23806336,118230.0,118220.0,0.87251936]
[1752892620606,0.2296057,118230.0,118220.0,0.6713834]
[1752892620831,0.2296057,118230.0,118220.0,0.88097823]
[1752892621089,0.2296057,118230.0,118220.0,0.87295595]
[1752892621314,0.2296057,118230.0,118220.0,0.88141461]
[1752892621537,0.2325457,118230.0,118220.0,0.70378163]
[1752892621771,0.22408783,118230.0,118220.0,0.70378163]
[1752892622368,0.21562989,118230.0,118220.0,0.6953229]
[1752892622547,0.21562989,118230.0,118220.0,0.6868641]
[1752892622785,0.02537712,118210.0,118200.0,0.27080888]
[1752892623041,0.03580635,118210.0,118200.0,0.61751298]
[1752892623230,0.03580635,118210.0,118200.0,0.95751298]
[1752892623231,0.02734712,118210.0,118200.0,0.95751298]
[1752892623442,0.01888796,118210.0,118200.0,0.96257298]
[1752892623653,0.18807895,118210.0,118200.0,0.6866641]
[1752892623864,0.21917895,118210.0,118200.0,0.15355028]
[1752892624072,0.22211895,118210.0,118200.0,0.06818949]
[1752892625286,0.47367366,118210.0,118200.0,0.00414949]
[1752892625533,0.47367366,118210.0,118200.0,0.00214949]
[1752892625780,0.47467366,118210.0,118200.0,0.00014949]
[1752892625967,0.47367366,118210.0,118200.0,0.00014949]
[1752892626480,0.47567366,118210.0,118200.0,0.00014949]
[1752892626735,0.41723277,118210.0,118200.0,0.00014949]
[1752892626986,0.41823277,118210.0,118200.0,0.00014949]
[1752892627204,0.41823277,118210.0,118200.0,0.06810949]
[1752892629965,0.41823277,118210.0,118200.0,0.00014949]
[1752892633182,0.43277362,118210.0,118200.0,0.00014949]
[1752892633384,0.50234435,118210.0,118200.0,0.00014949]
[1752892635051,0.58785463,118210.0,118200.0,0.00014949]
[1752892637699,0.78096845,118210.0,118200.0,0.00014949]
[1752892637908,0.58485463,118210.0,118200.0,0.00014949]
[1752892638114,0.58685463,118210.0,118200.0,0.00014949]
[1752892638359,0.39374081,118210.0,118200.0,0.00014949]
[1752892638565,0.58985463,118210.0,118200.0,0.00014949]
[1752892640142,0.92985463,118210.0,118200.0,0.00014949]
[1752892644602,1.12296845,118210.0,118200.0,0.00014949]
[1752892645049,0.92985463,118210.0,118200.0,0.00014949]
[1752892645793,1.12296845,118210.0,118200.0,0.00014949]
[1752892648520,1.62296845,118210.0,118200.0,0.00014949]
[1752892648720,1.42985463,118210.0,118200.0,0.00014949]
[1752892649172,1.61450908,118210.0,118180.0,0.06777651]
[1752892649380,0.42629511,118190.0,118180.0,0.06777651]
[1752892649595,0.59952501,118190.0,118180.0,0.06777651]
[1752892649822,0.18617195,118170.0,118160.0,0.07777651]
[1752892650065,0.38124577,118170.0,118160.0,0.07777651]
[1752892650712,0.18813195,118170.0,118160.0,0.07777651]
[1752892650926,0.38124577,118170.0,118160.0,0.07777651]
[1752892651150,0.25026109,118170.0,118160.0,0.07777651]
[1752892651373,0.44337491,118170.0,118160.0,0.07777651]
[1752892651595,0.38124577,118170.0,118160.0,0.07777651]
[1752892652049,0.38324577,118170.0,118160.0,0.07777651]
[1752892654525,0.3915772,118170.0,118160.0,0.07777651]
[1752892654938,0.19846338,118170.0,118160.0,0.08280651]
[1752892655156,0.01046202,118170.0,118160.0,0.49320803]
[1752892655376,0.002,118170.0,118160.0,0.84781472]
[1752892655583,0.002,118170.0,118160.0,1.12770656]
[1752892655806,0.002,118170.0,118160.0,1.29781472]
[1752892656022,0.16921696,118200.0,118190.0,0.20877356]
[1752892656023,0.18612469,118200.0,118190.0,0.20877356]
[1752892656241,0.18617483,118200.0,118190.0,0.21086356]
[1752892656465,0.18617483,118200.0,118190.0,0.23476477]
[1752892656663,0.18617483,118200.0,118190.0,0.23770477]
[1752892656912,0.1863726,118200.0,118190.0,0.03613]
[1752892657576,0.20585895,118200.0,118190.0,0.02083]
[1752892657788,0.1873726,118200.0,118190.0,0.02083]
[1752892658590,0.1873726,118200.0,118190.0,0.03613]
[1752892660723,0.1873726,118200.0,118190.0,0.02083]
[1752892660724,0.38244642,118200.0,118190.0,0.02083]
[1752892660980,0.17767985,118190.0,118180.0,0.0859]
[1752892661410,0.17767985,118190.0,118180.0,0.08799]
[1752892662474,0.17767985,118190.0,118180.0,0.08999]
[1752892664169,0.17963985,118190.0,118180.0,0.08999]
[1752892664602,0.17963985,118190.0,118180.0,0.08496]
[1752892664805,0.18287985,118190.0,118180.0,0.06956]
[1752892665035,0.17963985,118190.0,118180.0,0.06956]
[1752892665246,0.17963985,118190.0,118180.0,0.07165]
[1752892665901,0.37599367,118190.0,118180.0,0.002]
[1752892666550,0.40829367,118190.0,118180.0,0.002]
[1752892666987,0.47597367,118190.0,118180.0,0.002]
[1752892667258,0.47697367,118190.0,118180.0,0.002]
[1752892668317,0.18617195,118170.0,118160.0,0.17909651]
[1752892668543,0.18617195,118170.0,118160.0,0.18118651]
[1752892668755,0.18617195,118170.0,118160.0,0.37430033]
[1752892669806,0.18617195,118170.0,118160.0,0.11350651]
[1752892670004,0.18617195,118170.0,118160.0,0.37438033]
[1752892670229,0.18617195,118170.0,118160.0,0.11349]
[1752892670453,0.38124577,118170.0,118160.0,0.012]
[1752892670684,0.4393389,118170.0,118160.0,0.07976]
[1752892670917,0.24622508,118170.0,118160.0,0.07976]
[1752892671148,0.24622508,118170.0,118160.0,0.012]
[1752892671364,0.19137195,118170.0,118160.0,0.012]
[1752892671794,0.38448577,118170.0,118160.0,0.01]
[1752892676617,0.19137195,118170.0,118160.0,0.01]
[1752892676823,0.38448577,118170.0,118160.0,0.01]
[1752892677343,0.19137195,118170.0,118160.0,0.07777651]
[1752892677974,0.38448577,118170.0,118160.0,0.01]
[1752892678197,0.4712589,118170.0,118160.0,0.01]
[1752892678826,0.5389389,118170.0,118160.0,0.01]
[1752892680378,0.29045195,118170.0,118160.0,0.01]
[1752892680594,0.46856577,118170.0,118160.0,0.01]
[1752892680811,0.27545195,118170.0,118160.0,0.01]
[1752892681025,0.46856577,118170.0,118160.0,0.01]
[1752892681455,0.27545195,118170.0,118160.0,0.01]
[1752892681673,0.46856577,118170.0,118160.0,0.01]
[1752892681893,0.51467552,118170.0,118160.0,0.01]
[1752892682106,0.49827552,118170.0,118160.0,0.01]
[1752892684364,0.3051617,118170.0,118160.0,0.01]
[1752892684607,0.25581195,118170.0,118160.0,0.0265]
[1752892685056,0.25581195,118170.0,118160.0,0.02867]
[1752892687492,0.25385195,118170.0,118160.0,0.03172]
[1752892687904,0.25584195,118170.0,118160.0,0.03172]
[1752892688326,0.18816195,118170.0,118160.0,0.03172]
[1752892688735,0.18816195,118170.0,118160.0,0.02867]
[1752892688944,0.18816195,118170.0,118160.0,0.01217]
[1752892689155,0.19139195,118170.0,118160.0,0.01]
[1752892692986,0.17772496,118160.0,118150.0,0.10271]
[1752892693192,0.17772496,118160.0,118150.0,0.10488]
[1752892694167,0.17772496,118160.0,118150.0,0.10702949]
[1752892694348,0.17971496,118160.0,118150.0,0.10702949]
[1752892695621,0.17772496,118160.0,118150.0,0.10702949]
[1752892703301,0.17772496,118160.0,118150.0,0.1154933]
[1752892703938,0.18618784,118160.0,118150.0,0.1154933]
[1752892704132,0.18618784,118160.0,118150.0,0.29323338]
[1752892704538,0.18618784,118160.0,118150.0,0.30169705]
[1752892704735,0.17772496,118160.0,118150.0,0.29323338]
[1752892705261,0.16924769,118170.0,118160.0,0.20822496]
[1752892705467,0.16924769,118170.0,118160.0,0.41187166]
[1752892705684,0.16924769,118170.0,118160.0,0.41505166]
[1752892705888,0.16924769,118170.0,118160.0,0.22193784]
[1752892706327,0.18616862,118180.0,118170.0,0.20821]
[1752892706528,0.18616862,118180.0,118170.0,0.47925591]
[1752892706735,0.18615648,118180.0,118170.0,0.29778404]